Cogmind - Beta 12 @@@ ROGUE MODE // 2023.05.05 @ 08:18:04 Player: Mr Goldstein Result: Destroyed by as-70550 with Assembled Focal Cannon Performance ------------- Evolutions (3) 1500 Regions Visited (11) 2200 Robots Destroyed (6) 30 Value Destroyed (123) 123 Prototype IDs (24) 480 Alien Tech Used (0) 0 Bonus (1545) 1545 TOTAL SCORE: 5878 Bonus ------- Pacifist 200 Aligned with FarCom 300 Met Imprinter 300 Triggered Deep Caves Wall 500 Exposed GOLEM Chamber 500 Friendly Fire -255 Cogmind --------- Core Integrity 0/700 Matter 125/300 Energy 83/100 System Corruption 1% Temperature Cool (18) Movement Core (100) Ox1 Location -6/Deep Caves Parts ------- > --- POWER (2) -------- (None) > --- PROPULSION (4) --- (None) > --- UTILITY (5) ------ GOLEM Unit > --- WEAPON (2) ------- Longsword +1 > --- INVENTORY (5) ---- Improved Sensor Array Improved Sensor Array GOLEM Unit Peak State ------------ > --- POWER ------------ (None) > --- PROPULSION ------- Hover Unit Hover Unit Makeshift Hover Unit > --- UTILITY ---------- GOLEM Unit > --- WEAPON ----------- Longsword +1 > --- INVENTORY -------- Improved Sensor Array Improved Sensor Array GOLEM Unit [Rating: 33] Favorites ----------- Power Cooled Ion Engine Engine Cooled Ion Engine Propulsion Hover Unit Treads Light Treads Hover Unit Hover Unit Flight Unit VTOL Module Utility Improved Sensor Array Device Improved Sensor Array Weapon Longsword +1 Launcher Grenade Launcher Slashing Weapon Longsword +1 Build | -11 -10 -9 -9 -9 -8 -8 -8 -7 -7 -6 -6 ------- Run | Jun Mat Mat Min Exi Min Mat Sto Fac Low Zio Dee Slots Evolved 6 | . . 2 . . . 2 . 2 . . . Power 1 | . . . . . . 1 . . . . . Propulsion 2 | . . . . . . . . 2 . . . Utility 3 | . . 2 . . . 1 . . . . . Weapon . | . . . . . . . . . . . . Parts Attached 25 | 2 . . 1 . 1 1 4 3 1 3 9 Power 1 | . . . . . . . 1 . . . . Engine 1 | . . . . . . . 1 . . . . Core . | . . . . . . . . . . . . Reactor . | . . . . . . . . . . . . Propulsion 10 | 2 . . . . 1 1 . 1 . 2 3 Treads 3 | 2 . . . . . 1 . . . . . Leg . | . . . . . . . . . . . . Wheel . | . . . . . . . . . . . . Hover 5 | . . . . . . . . . . 2 3 Flight 2 | . . . . . 1 . . 1 . . . Utility 3 | . . . . . . . 1 . . . 2 Device 3 | . . . . . . . 1 . . . 2 Storage . | . . . . . . . . . . . . Processor . | . . . . . . . . . . . . Hackware . | . . . . . . . . . . . . Protection . | . . . . . . . . . . . . Artifact . | . . . . . . . . . . . . Weapon 11 | . . . 1 . . . 2 2 1 1 4 Energy Gun . | . . . . . . . . . . . . Energy Cannon . | . . . . . . . . . . . . Ballistic Gun . | . . . . . . . . . . . . Ballistic Cannon . | . . . . . . . . . . . . Launcher 2 | . . . 1 . . . . . 1 . . Special Weapon . | . . . . . . . . . . . . Impact Weapon . | . . . . . . . . . . . . Slashing Weapon 9 | . . . . . . . 2 2 . 1 4 Piercing Weapon . | . . . . . . . . . . . . Special Melee Weapon . | . . . . . . . . . . . . Unidentified Prototypes 1 | . . . . . . . 1 . . . . Parts Lost 8 | . . . . . . 1 1 1 . 1 4 Power . | . . . . . . . . . . . . Propulsion 8 | . . . . . . 1 1 1 . 1 4 Utility . | . . . . . . . . . . . . Weapon . | . . . . . . . . . . . . Highest Loss Streak 3 | . . . . . . 1 1 1 . 1 3 To Critical Strikes . | . . . . . . . . . . . . Average Slot Usage (%) 15 | . 28 22 23 22 22 18 9 1 1 2 32 Treads 5 | . 28 22 22 22 20 18 5 . . . . Hover 6 | . . . . . . . . . . . 24 Slashing Weapon 2 | . . . . . . . 1 . . 2 4 Naked Turns 578 | . . . . . . . 27 66 60 425 . Heaviest Build 4 | . . . . . . . 3 3 . 3 4 Greatest Support 4 | 3 3 3 3 3 4 3 3 4 3 3 3 Greatest Overweight (x) 1 | . . . . . . . . . . . 1 Average Overweight (x) . | . . . . . . . . . . . . Largest Inventory Capacity 5 | 5 5 5 5 5 5 5 5 5 5 5 5 Average Capacity 5 | 5 5 5 5 5 5 5 5 5 5 5 5 Most Carried 5 | . 1 1 2 3 3 3 3 5 5 5 5 Average Carried 3 | . . 1 1 2 3 3 2 4 4 4 3 Final Capacity 5 | 5 5 5 5 5 5 5 5 5 5 5 5 Final Carried 5 | . 1 1 2 3 3 3 3 5 5 4 4 Class Distribution -------------------- 83% | Mutant 16% | Scavenger-Mutant Dominant Class ---------------- Mutant | -10/Materials Mutant | -9/Materials Mutant | -9/Mines Mutant | -9/Exiles Mutant | -8/Mines Mutant | -8/Materials Mutant | -8/Storage Mutant | -7/Factory Mutant | -7/Lower Caves Mutant | -6/Zion Scavenger-Mutant | -6/Deep Caves Resources | -11 -10 -9 -9 -9 -8 -8 -8 -7 -7 -6 -6 ----------- Run | Jun Mat Mat Min Exi Min Mat Sto Fac Low Zio Dee Matter Collected 291 | 220 . . . . . . 43 . . 18 10 Remotely . | . . . . . . . . . . . . Salvage Created 139 | . . . 11 . . . 43 . 42 . 43 Parts 20 | . . . 2 . . . 3 . 7 . 8 Haulers Intercepted 1 | . . . . . . . 1 . . . . Recyclers Shooed 1 | . . . . . . . 1 . . . . Parts Field Recycled . | . . . . . . . . . . . . Retrieved Matter . | . . . . . . . . . . . . Parts Self-Destructed 9 | . . . . . . . . . 9 . . Prevented . | . . . . . . . . . . . . Kills | -11 -10 -9 -9 -9 -8 -8 -8 -7 -7 -6 -6 ------- Run | Jun Mat Mat Min Exi Min Mat Sto Fac Low Zio Dee Combat Hostiles Destroyed 5 | . . . 2 . . . . . 3 . . AOE 5 | . . . 2 . . . . . 3 . . Classes Destroyed 3 | . . . 1 . . . 1 . . . 1 Hauler 1 | . . . . . . . 1 . . . . Swarmer 5 | . . . 2 . . . . . 3 . . Z-Technician 4 | . . . . . . . . . . . 4 Best Kill Streak 4 | . . . 2 . . . 1 . 3 . 4 Combat Bots Only 3 | . . . 2 . . . . . 3 . . Max Kills in Single Turn 3 | . . . 1 . . . 1 . 3 . 1 Gunslinging . | . . . . . . . . . . . . Exploded 3 | . . . 1 . . . . . 3 . . Melee . | . . . . . . . . . . . . Uniques/NPCs Destroyed . | . . . . . . . . . . . . Combat | -11 -10 -9 -9 -9 -8 -8 -8 -7 -7 -6 -6 -------- Run | Jun Mat Mat Min Exi Min Mat Sto Fac Low Zio Dee Damage Taken 1660 | . 22 91 150 . 1 43 249 72 57 354 621 Core 983 | . . 43 57 . . 15 143 50 57 250 368 Absorbed by Shields . | . . . . . . . . . . . . Core Remaining (%) 86 | 100 100 . . . 75 . 71 . . . . Volleys Fired 5 | . . . 4 . . . . . 1 . . Largest 1 | . . . 1 . . . . . 1 . . Hottest 39 | . . . 30 . . . . . 39 . . Shots Fired 5 | . . . 4 . . . . . 1 . . Gun . | . . . . . . . . . . . . Cannon . | . . . . . . . . . . . . Launcher 5 | . . . 4 . . . . . 1 . . Special . | . . . . . . . . . . . . Kinetic . | . . . . . . . . . . . . Thermal . | . . . . . . . . . . . . Explosive 5 | . . . 4 . . . . . 1 . . Electromagnetic . | . . . . . . . . . . . . Robot Hit Streak 1 | . . . 1 . . . . . . . . Robot Miss Streak . | . . . . . . . . . . . . Penetration Max . | . . . . . . . . . . . . Secondary Targets . | . . . . . . . . . . . . Shots Hit Robots 8 | . . . 1 . . . 1 . . 2 4 Core Hits 10 | . . . 2 . 1 . 1 . 3 1 2 Critical Kills . | . . . . . . . . . . . . Critical Parts Destroyed . | . . . . . . . . . . . . Critical Strikes . | . . . . . . . . . . . . Melee Attacks 47 | . . . . . . . 3 5 . 21 18 Impact . | . . . . . . . . . . . . Slashing 47 | . . . . . . . 3 5 . 21 18 Piercing . | . . . . . . . . . . . . Sneak Attacks 5 | . . . . . . . . . . 1 4 Combat Hostiles . | . . . . . . . . . . . . Follow-up Attacks . | . . . . . . . . . . . . Damage Inflicted 1104 | . . . 244 . 4 . 63 . 174 140 479 Guns . | . . . . . . . . . . . . Cannons . | . . . . . . . . . . . . Explosions 418 | . . . 244 . . . . . 174 . . Melee 673 | . . . . . . . 54 . . 140 479 Ramming 13 | . . . . . 4 . 9 . . . . Kinetic . | . . . . . . . . . . . . Thermal . | . . . . . . . . . . . . Explosive 418 | . . . 244 . . . . . 174 . . Electromagnetic . | . . . . . . . . . . . . Impact . | . . . . . . . . . . . . Slashing 673 | . . . . . . . 54 . . 140 479 Piercing . | . . . . . . . . . . . . Highest Corruption 1 | . . 1 1 1 1 . 1 . . 1 1 Average Corruption 1 | . . 1 1 1 1 . 1 . . 1 1 Corruption Purged . | . . . . . . . . . . . . Corruption Blocked . | . . . . . . . . . . . . Effects 3 | . . . 1 . . . 1 . . . 1 Matter Fused 2 | . . . 1 . . . 1 . . . . Data Loss (major) 1 | . . . . . . . . . . . 1 Overload Shots . | . . . . . . . . . . . . Overflow Damage 196 | . . . 18 . . . . . . . 178 Projectiles . | . . . . . . . . . . . . Explosions 18 | . . . 18 . . . . . . . . Melee 178 | . . . . . . . . . . . 178 Knockbacks 1 | . . . . . . . 1 . . . . Impact 1 | . . . . . . . 1 . . . . Kinetic . | . . . . . . . . . . . . Secondary . | . . . . . . . . . . . . Self-Inflicted Damage 43 | . . . 38 . 1 . 4 . . . . Shots 1 | . . . 1 . . . . . . . . Rammed 4 | . . . . . 2 . 2 . . . . Targets Rammed 4 | . . . . . 2 . 2 . . . . Kicked . | . . . . . . . . . . . . Crushed . | . . . . . . . . . . . . Highest Temperature . | . . . . . . . . . . . . Average Temperature . | . . . . . . . . . . . . Received Heat Transfer 232 | . 12 36 . . . 18 45 24 9 40 48 Siege Activations . | . . . . . . . . . . . . Robots Corrupted . | . . . . . . . . . . . . Combat Hostiles . | . . . . . . . . . . . . Parts Fried . | . . . . . . . . . . . . Impact Corruptions . | . . . . . . . . . . . . Robots Melted . | . . . . . . . . . . . . Combat Hostiles . | . . . . . . . . . . . . Parts Melted . | . . . . . . . . . . . . Heat Transferred . | . . . . . . . . . . . . Parts Sabotaged . | . . . . . . . . . . . . Parts Stolen . | . . . . . . . . . . . . Parts Stripped . | . . . . . . . . . . . . Power Chain Reactions . | . . . . . . . . . . . . Missiles Intercepted . | . . . . . . . . . . . . Alert | -11 -10 -9 -9 -9 -8 -8 -8 -7 -7 -6 -6 ------- Run | Jun Mat Mat Min Exi Min Mat Sto Fac Low Zio Dee Peak Influence 122 | . 15 58 122 . . 15 62 53 . . . Initial 28 | . . 5 22 . . . 1 28 . . . Average 30 | . 5 31 73 . . 6 20 36 . . . Maximum Alert Level . | . . . . . . . . . . . . Low Security (%) 100 | 100 100 100 100 . 100 100 100 100 . . . Level 1 . | . . . . . . . . . . . . Level 2 . | . . . . . . . . . . . . Level 3 . | . . . . . . . . . . . . Level 4 . | . . . . . . . . . . . . Level 5 . | . . . . . . . . . . . . High Security . | . . . . . . . . . . . . Max Security . | . . . . . . . . . . . . Squads Dispatched 1 | . 1 . . . . . . . . . . Investigation . | . . . . . . . . . . . . Extermination . | . . . . . . . . . . . . Reinforcement 1 | . 1 . . . . . . . . . . Assault . | . . . . . . . . . . . . Garrison . | . . . . . . . . . . . . Intercept . | . . . . . . . . . . . . Searches Triggered . | . . . . . . . . . . . . Construction Impeded . | . . . . . . . . . . . . Haulers Reinforced . | . . . . . . . . . . . . Active Scanning Responses . | . . . . . . . . . . . . Cargo Convoy Interrupts . | . . . . . . . . . . . . Stealth | -11 -10 -9 -9 -9 -8 -8 -8 -7 -7 -6 -6 --------- Run | Jun Mat Mat Min Exi Min Mat Sto Fac Low Zio Dee Distress Signals 1 | . . . . . . . 1 . . . . Communications Jammed . | . . . . . . . . . . . . Distress Signals . | . . . . . . . . . . . . Times Spotted 72 | . 3 6 5 . . 1 5 1 7 10 34 Peak Tracking Total 40 | . 2 7 5 . . 1 6 1 7 10 40 Tactical Retreats 4 | . . . 1 . . . 1 . 1 1 . Traps | -11 -10 -9 -9 -9 -8 -8 -8 -7 -7 -6 -6 ------- Run | Jun Mat Mat Min Exi Min Mat Sto Fac Low Zio Dee Traps Triggered 3 | . . 1 . . . . 2 . . . . Indirectly . | . . . . . . . . . . . . Trap Hack Attempts . | . . . . . . . . . . . . Triggered . | . . . . . . . . . . . . Disarmed . | . . . . . . . . . . . . Reprogrammed . | . . . . . . . . . . . . Reused . | . . . . . . . . . . . . Traps Extracted . | . . . . . . . . . . . . Installed . | . . . . . . . . . . . . Triggered . | . . . . . . . . . . . . Machines | -11 -10 -9 -9 -9 -8 -8 -8 -7 -7 -6 -6 ---------- Run | Jun Mat Mat Min Exi Min Mat Sto Fac Low Zio Dee Machines Disabled 4 | . . . . . . . 2 . . . 2 Max in Single Turn 1 | . . . . . . . 1 . . . 1 Machines Repaired . | . . . . . . . . . . . . Machines Sabotaged . | . . . . . . . . . . . . Overloaded Fab Kills . | . . . . . . . . . . . . Hacking | -11 -10 -9 -9 -9 -8 -8 -8 -7 -7 -6 -6 --------- Run | Jun Mat Mat Min Exi Min Mat Sto Fac Low Zio Dee Machines Accessed 7 | . . 1 . 1 . . 2 2 . 1 . Terminals 4 | . . 1 . . . . 2 1 . . . Fabricators 1 | . . . . . . . . 1 . . . Repair Stations . | . . . . . . . . . . . . Recycling Units . | . . . . . . . . . . . . Scanalyzers . | . . . . . . . . . . . . Garrison Access . | . . . . . . . . . . . . Total Hacks 14 | . . 3 . 1 . . 2 2 . 6 . Successful 11 | . . 1 . 1 . . 2 1 . 6 . Failed 3 | . . 2 . . . . . 1 . . . Catastrophic 1 | . . 1 . . . . . . . . . Database Lockouts . | . . . . . . . . . . . . Manual 9 | . . 3 . 1 . . . 1 . 4 . Terminals 6 | . . 3 . . . . 2 1 . . . Fabricators 1 | . . . . . . . . 1 . . . Repair Stations . | . . . . . . . . . . . . Recycling Units . | . . . . . . . . . . . . Scanalyzers . | . . . . . . . . . . . . Garrison Access . | . . . . . . . . . . . . Terminal Hacks 11 | . . 1 . 1 . . 2 1 . 6 . Part Schematic 6 | . . . . . . . . . . 6 . Open Door 2 | . . . . . . . 2 . . . . Branch Access Points 2 | . . 1 . . . . . 1 . . . EX-Prototype ID Bank 1 | . . . . 1 . . . . . . . Fabricator Hacks . | . . . . . . . . . . . . Repair Station Hacks . | . . . . . . . . . . . . Recycling Unit Hacks . | . . . . . . . . . . . . Scanalyzer . | . . . . . . . . . . . . Garrison Access Hacks . | . . . . . . . . . . . . Unauthorized Hacks . | . . . . . . . . . . . . Terminals . | . . . . . . . . . . . . Fabricators . | . . . . . . . . . . . . Repair Stations . | . . . . . . . . . . . . Recycling Units . | . . . . . . . . . . . . Scanalyzers . | . . . . . . . . . . . . Garrison Access . | . . . . . . . . . . . . Data Cores Recovered . | . . . . . . . . . . . . Used . | . . . . . . . . . . . . Hacking Detections 3 | . . 1 . . . . 1 1 . . . Full Trace Events 1 | . . 1 . . . . . . . . . Feedback Events . | . . . . . . . . . . . . Feedback Blocked . | . . . . . . . . . . . . Robot Schematics Acquired 3 | . . . . . . . . . . 3 . Robots Built . | . . . . . . . . . . . . Authchips . | . . . . . . . . . . . . Time . | . . . . . . . . . . . . Total Robot Build Rating . | . . . . . . . . . . . . Part Schematics Acquired 19 | . . . . . . . . . . 19 . Parts Built . | . . . . . . . . . . . . Authchips . | . . . . . . . . . . . . Time . | . . . . . . . . . . . . Total Part Build Rating . | . . . . . . . . . . . . Parts Repaired . | . . . . . . . . . . . . Time . | . . . . . . . . . . . . Parts Recycled . | . . . . . . . . . . . . Recycled Matter . | . . . . . . . . . . . . Retrieved Matter . | . . . . . . . . . . . . Retrieved Components . | . . . . . . . . . . . . Parts Scanalyzed . | . . . . . . . . . . . . Part Schematics Acquired . | . . . . . . . . . . . . Parts Damaged . | . . . . . . . . . . . . Bothacking | -11 -10 -9 -9 -9 -8 -8 -8 -7 -7 -6 -6 ------------ Run | Jun Mat Mat Min Exi Min Mat Sto Fac Low Zio Dee Used RIF Installer . | . . . . . . . . . . . . Robots Hacked . | . . . . . . . . . . . . Non-combat . | . . . . . . . . . . . . Combat . | . . . . . . . . . . . . Robot Hacks Applied . | . . . . . . . . . . . . Relay Couplers Released . | . . . . . . . . . . . . Fabnet Peak Effective % . | . . . . . . . . . . . . Robots Rewired . | . . . . . . . . . . . . Allies Hacked . | . . . . . . . . . . . . Hacks Repelled . | . . . . . . . . . . . . Allies | -11 -10 -9 -9 -9 -8 -8 -8 -7 -7 -6 -6 -------- Run | Jun Mat Mat Min Exi Min Mat Sto Fac Low Zio Dee Total Allies . | . . . . . . . . . . . . Largest Group . | . . . . . . . . . . . . Highest-Rated Group . | . . . . . . . . . . . . Highest-Rated Ally . | . . . . . . . . . . . . Total Orders 2 | . . . . . . . 2 . . . . EXPLORE 1 | . . . . . . . 1 . . . . RETURN 1 | . . . . . . . 1 . . . . Ally Attacks . | . . . . . . . . . . . . Total Damage . | . . . . . . . . . . . . Kills . | . . . . . . . . . . . . Allies Corrupted . | . . . . . . . . . . . . Allies Melted . | . . . . . . . . . . . . Intel | -11 -10 -9 -9 -9 -8 -8 -8 -7 -7 -6 -6 ------- Run | Jun Mat Mat Min Exi Min Mat Sto Fac Low Zio Dee Robot Analysis Total . | . . . . . . . . . . . . Derelict Logs Recovered 3 | . . . 1 . . . . . 1 1 . Drone Launches 2 | . . . . . . . 2 . . . . Drone Recoveries 1 | . . . . . . . 1 . . . . Exploration | -11 -10 -9 -9 -9 -8 -8 -8 -7 -7 -6 -6 ------------- Run | Jun Mat Mat Min Exi Min Mat Sto Fac Low Zio Dee Turns Passed 1677 | 17 35 57 101 108 69 13 106 91 62 597 421 Spaces Moved 2745 | 28 67 113 176 213 96 23 143 115 117 1023 631 Core 2695 | 28 67 113 176 213 72 23 143 89 117 1023 631 Treads . | . . . . . . . . . . . . Legs . | . . . . . . . . . . . . Wheels . | . . . . . . . . . . . . Hover . | . . . . . . . . . . . . Flight 50 | . . . . . 24 . . 26 . . . Fastest Speed 35 | 50 50 50 50 50 50 50 50 35 50 50 50 Average Speed 50 | 50 50 50 50 50 51 50 50 46 50 50 50 Slowest Speed 100 | 50 50 50 50 50 55 50 50 50 50 50 100 Overloaded Moves . | . . . . . . . . . . . . Propulsion Burnouts . | . . . . . . . . . . . . Robots Hopped 2 | . . . . . 1 . . 1 . . . Cave-ins Triggered . | . . . . . . . . . . . . Exploration Rate (%) 33 | 3 15 21 43 60 40 4 32 5 23 86 66 Regions Visited 11 Branch Regions 7 Pre-discovered Areas 3 | . . . . . . . . . 1 2 . Known Exits Taken 2 | . . 1 . . . . . 1 . . . Unknown Exits Taken 9 | 1 1 . 1 1 1 1 1 . 1 1 . Scrap Searched 3 | . . . 1 . . . . . . 2 . Spaces Dug 17 | . . . 8 . . . . 5 . . 4 Terrain Destroyed 62 | . . . 37 . . . . 5 16 . 4 Melee 9 | . . . . . . . . 5 . . 4 Projectile . | . . . . . . . . . . . . AOE 53 | . . . 37 . . . . . 16 . . Terrain Rammed . | . . . . . . . . . . . . Walls Destroyed . | . . . . . . . . . . . . Machines Disabled . | . . . . . . . . . . . . Actions | -11 -10 -9 -9 -9 -8 -8 -8 -7 -7 -6 -6 --------- Run | Jun Mat Mat Min Exi Min Mat Sto Fac Low Zio Dee Total 2982 | 29 67 112 184 213 113 23 174 146 119 1085 717 Wait 147 | . . . 2 . 16 . 19 20 . 39 51 Move 2730 | 27 66 112 175 212 93 22 142 112 116 1022 631 Hop 2 | . . . . . 1 . . 1 . . . Pick Up 7 | . 1 . 1 1 . . . 3 . . 1 Fast Attach 10 | 2 . . . . . . 2 . . 2 4 Attach 13 | . . . 1 . . . 2 3 1 1 5 Detach 11 | . . . 1 . . . 2 2 1 . 5 Swap 2 | . . . . . 1 1 . . . . . Drop 4 | . . . . . . . 2 . . . 2 Fire 5 | . . . 4 . . . . . 1 . . Melee 47 | . . . . . . . 3 5 . 21 18 Ram 4 | . . . . . 2 . 2 . . . . Kick . | . . . . . . . . . . . . Crush . | . . . . . . . . . . . . Escape Stasis . | . . . . . . . . . . . . Rewire . | . . . . . . . . . . . . Trap . | . . . . . . . . . . . . Miscellaneous . | . . . . . . . . . . . . Route ------- -11/Junkyard -10/Materials -9/Materials -9/Mines (discovered 2 exits: [*Mat] / *Exi) -9/Exiles -8/Mines -8/Materials -8/Storage (discovered 2 exits: *Fac / Rec) -7/Factory (discovered 2 exits: *Low x2) -7/Lower Caves -6/Zion (discovered 2 exits: [*Dee] / [*Pro]) -6/Deep Caves (discovered 1 exit: [*Pro]) History --------- Turn | Location | Event 7 | -11/Junkyard | Discovered new exit (range 16) 18 | -11/Junkyard | Entered Materials 49 | -10/Materials | Discovered new exit (range 6) 53 | -10/Materials | Entered another Materials area 53 | -9/Materials | Evolved 2 slots: Utility x2 65 | -9/Materials | Identified exit to Mines 110 | -9/Materials | Entered Mines 111 | -9/Mines | Assembled infested the area 116 | -9/Mines | Assisted by a Guerilla fighting off Assembled 125 | -9/Mines | Discovered new exit (range 14) 129 | -9/Mines | A weapon hastily lodged in a ceiling crevice suddenly fell to the ground 209 | -9/Mines | Deemed a non-threat by the Exiles lab entrance 209 | -9/Mines | Discovered new exit (range 5) 211 | -9/Mines | Entered Exiles 224 | -9/Exiles | Met 8R-AWN 233 | -9/Exiles | Met EX-HEX 246 | -9/Exiles | Met EX-BIN 252 | -9/Exiles | Aligned with FarCom system 253 | -9/Exiles | Given EX-Vault access code 264 | -9/Exiles | Opened EX-Vault 268 | -9/Exiles | Found Longsword +1 280 | -9/Exiles | Warned to stay clear of 0b10 Research branches 294 | -9/Exiles | Met EX-DEC 312 | -9/Exiles | Discovered new exit (range 10) 318 | -9/Exiles | Build established: Mutant 319 | -9/Exiles | Left Exiles lab with Longsword +1 319 | -9/Exiles | Entered Mines 379 | -8/Mines | Discovered new exit (range 13) 388 | -8/Mines | Entered Materials 388 | -8/Materials | Evolved 2 slots: Power x1, Utility x1 394 | -8/Materials | Discovered new exit (range 16) 401 | -8/Materials | Entered Storage 402 | -8/Storage | Identified exit to Recycling 493 | -8/Storage | Discovered new exit (range 14) 507 | -8/Storage | Entered Factory 507 | -7/Factory | Evolved 2 slots: Propulsion x2 540 | -7/Factory | Identified exit to Lower Caves 598 | -7/Factory | Entered Lower Caves 600 | -7/Lower Caves | Attracted the attention of an 0b10 outpost 652 | -7/Lower Caves | Learned location of Extension (-6) 656 | -7/Lower Caves | A Derelict revealed a hidden shortcut to a safe place 660 | -7/Lower Caves | Entered Zion 748 | -6/Zion | Discovered new exit (range 11) 837 | -6/Zion | Learned Factory emergency access door positions 850 | -6/Zion | Received a hallucinogenic algorithm 918 | -6/Zion | Learned location of Armory (-3) 1194 | -6/Zion | Rebuked by Imprinter 1197 | -6/Zion | Attacked by Zionites 1206 | -6/Zion | Extracted access codes from Imprinter's data core 1210 | -6/Zion | Core integrity fell below 50% 1240 | -6/Zion | Opened final containment barrier to the Deep Caves 1247 | -6/Zion | Discovered new exit (range 5) 1248 | -6/Zion | Saw the warning signs outside the Deep Caves entrance 1257 | -6/Zion | Entered Deep Caves 1307 | -6/Deep Caves | Z-Facility disabled 1470 | -6/Deep Caves | Discovered new exit (range 6) 1498 | -6/Deep Caves | Spotted as-70550 1648 | -6/Deep Caves | Triggered Deep Caves wall 1649 | -6/Deep Caves | Exposed GOLEM chamber 1652 | -6/Deep Caves | Found GOLEM Unit 1656 | -6/Deep Caves | Found GOLEM Unit 1670 | -6/Deep Caves | Core integrity fell below 20% 1678 | -6/Deep Caves | Destroyed by as-70550 with Assembled Focal Cannon Last Messages --------------- 01296_ TJ-V81(o) destroyed. 01298_ Acquired 10 matter. 01299_ Sneak attack on EP-CLC(o). 01299_ EP-CLC(o) destroyed. 01302_ Acquired Hover Unit. 01307_ Z-Facility disabled. 01470_ EXIT=FOUND 01489_ Dropped Grenade Launcher. 01489_ Dropped Hvy. Rocket Launcher. 01499_ as-70550: "DSI9AT1D G8OHIBQ29FWG 26R186 QD12WHW8W33 TDK1 81FTS" 01558_ Hover Unit destroyed. 01632_ System corrupted: Substantial component data lost. 01649_ Wall Chamber breached. 01649_ A GOLEM Unit tumbles out of the Wall Chamber. 01652_ Acquired GOLEM Unit. 01653_ A GOLEM Unit tumbles out of the Wall Chamber. 01656_ Acquired GOLEM Unit. 01658_ Hover Unit destroyed. 01662_ UY-5YB(s) destroyed. 01665_ Mak. Hover Unit destroyed. Map ----- +----------------------------------------------------+ | ??????????????????????????# #????## ### | | ??????????????????????###?# ####????# | | ?????????????????????## #### ###??????## | | ????????????????????## ### #???????## | | ????????????????????# ## #???##### | | ????????????????????# ## #??## ## | | ?????????????????????# ## #??# | | ?????????????????????## # #??# ## ### | | ?????????????????????## #??####"### #### | | ????????????????????## #?????## ####?# | | ????????????????????# ########"#????# | | ????????????????????# ##"# ##????# | | ????????????????????## #????#### | | ????????????????####### ##???????## | | ????????????????# ####?????????# | | ????????????????# ##???????????## | | ????????????????# ##### ##???????????# | | ????????????????# #???## #####???????# | | ??????????????### #????# #??????## | | ??? ???## ##???# # ## #????### | | ??# ##??# ###### #???## | | #??# #### #????## #??## | | * ##?## #????## ##??# | | * #??# #????# ##??# | | * #??## ######????# ##?## | | #???# G @#????### #??###### | | = #??## #c#a#??????## #???????# | | = #?## #"#a#???????# #???????# | | * #?# ### #??####?## ##??????# | | #?# ]] a #?## ##?## ######## | | = = ### ##### #??## | | // ### #?## #???## | | #?## #### #???## ### ##### | | [ #??## ###?# #??## #?# ##??? | | * ##### ##???# #?## #### ##?? | | * ##???## ### ##?# #?# | | ##???### ##?## ### | | * ##????## #### ## | | ## ###???# ## | | ### ### ##??# | | ##?###?## #??## | | # # #???????##### #???##### | | ### ## ## ##???????????## #???????## ## ## | | ??# ## ####??????????????##????????######## #### | | ??#### #??????????????????????????????????#####??? | | ??????#??????????????????????????????????????????? | | | | | | | | | +----------------------------------------------------+ Best States ------------- Heat Dissipation 34 Energy Generation 5 Energy Capacity 100 Matter Stores 300 Matter Capacity 300 Sight Range 16 Robot Scan Range 15 Terrain Scan Density 10 Evasion (%) 59 Item Schematics ----------------- Imp. Plasma Cutter | -6/Zion | Archive Imp. Trap Scanner | -6/Zion | Archive Antimatter Reactor | -6/Zion | Archive Railgun | -6/Zion | Archive Arm. Leg | -6/Zion | Archive Mass Driver | -6/Zion | Archive Imp. Hacking Suite | -6/Zion | Archive Hvy. Treads | -6/Zion | Archive Remote Shield | -6/Zion | Archive 0b10 Decoder Chip [Scout] | -6/Zion | Archive Imp. Focal Shield | -6/Zion | Archive Mak. Cloaking Device | -6/Zion | Archive Imp. Recalibrator | -6/Zion | Archive Riot Gun | -6/Zion | Free Battle Rifle | -6/Zion | Free Barrage Gun | -6/Zion | Free Slug Cannon | -6/Zion | Free Flamer | -6/Zion | Free Enh. Flamer | -6/Zion | Free Robot Schematics ------------------ E-15 Imp | -6/Zion | Archive H-66 Slayer | -6/Zion | Archive S-27 Virus | -6/Zion | Archive Fabricated ------------ Nothing Alien Tech Used ----------------- None Achievements -------------- None Challenges ------------ None Game ------ Seed DecoyHardlightRecalibrator Manual? 0 Play Time 00:19:10 Cumulative 175.5 hours Start 2023.05.05 @ 07:59:20 End 2023.05.05 @ 08:18:04 Sessions 1 Manual Loads 0 Difficulty Rogue Special Mode None Game No. 523 Rogue 523 Adventurer 0 Explorer 0 Win Type - Total 8 Types 7/0/0/1/0/0/0/0/0 Lore% 71 Gallery% 74 Achievement% 65 Wizard Run 0 Options --------- ASCII 0 Keyboard 0 Movement Numpad Keybinds 0 Fullscreen 1 Font 16/SmallcapsGlow Map View 75x55 Tactical HUD 1 Map Filters NONE Filters NONE Steam 1 RUN: 8ac5f192-7a6b-42f0-bd7f-5c1b6dfd3c2d